fUST/lending_fUST_20251026
["ID","MTS","AMOUNT","RATE_DAILY","PERIOD"]
[392404450,1761435055862,-1000.0,0.00016912,2]
[392404451,1761435055873,-1000.0,0.00016912,2]
[392404452,1761435055882,-1000.0,0.00016912,2]
[392404453,1761435055893,-1000.0,0.00016912,2]
[392404454,1761435055903,-1000.0,0.00016912,2]
[392404455,1761435055913,-1000.0,0.00016912,2]
[392404456,1761435055923,-1000.0,0.00016912,2]
[392404457,1761435055932,-196.0,0.00016914,2]
[392404458,1761435055941,-418.0,0.00016931,2]
[392404459,1761435055950,-297.75378958,0.00016931,2]
[392404460,1761435055960,-1704.0,0.00016931,2]
[392404461,1761435055970,-1224.0,0.00016931,2]
[392404462,1761435055979,-1500.0,0.00016933,2]
[392404463,1761435055989,-1500.0,0.00016933,2]
[392404464,1761435055998,-1500.0,0.00016933,2]
[392404465,1761435056045,-724.9,0.00016961,2]
[392404466,1761435056054,-196.0,0.00016966,2]
[392404467,1761435056063,-418.0,0.00016986,2]
[392404468,1761435056072,-1704.0,0.00016986,2]
[392404469,1761435056081,-1224.0,0.00016986,2]
[392404470,1761435056091,-500.0,0.00016986,2]
[392404471,1761435056101,-500.0,0.00016986,2]
[392404472,1761435056110,-500.0,0.00016986,2]
[392404473,1761435056120,-500.0,0.00016986,2]
[392404474,1761435056130,-520.36714207,0.00016986,2]
[392404475,1761435056140,-1151.92,0.00016986,2]
[392404476,1761435056150,-500.0,0.00016986,2]
[392404477,1761435056160,-500.0,0.00016986,2]
[392404478,1761435056169,-500.0,0.00016986,2]
[392404479,1761435056178,-500.0,0.00016986,2]
[392404480,1761435056187,-500.0,0.00016986,2]
[392404481,1761435056196,-500.0,0.00016986,2]
[392404482,1761435056206,-519.29881485,0.00016986,2]
[392404483,1761435056215,-500.0,0.00016986,2]
[392404484,1761435056225,-500.0,0.00016986,2]
[392404485,1761435056234,-500.0,0.00016986,2]
[392404486,1761435056243,-500.0,0.00016986,2]
[392404487,1761435056252,-566.67,0.00016986,2]
[392404488,1761435056261,-500.0,0.00016986,2]
[392404489,1761435056270,-500.0,0.00016986,2]
[392404490,1761435056279,-500.0,0.00016986,2]
[392404491,1761435056288,-1191.25,0.00016986,2]
[392404492,1761435056297,-500.0,0.00016986,2]
[392404493,1761435056307,-500.0,0.00016986,2]
[392404494,1761435056315,-500.0,0.00016986,2]
[392404495,1761435056325,-500.0,0.00016986,2]
[392404496,1761435056333,-500.0,0.00016986,2]
[392404497,1761435056342,-500.0,0.00016986,2]
[392404498,1761435056351,-500.0,0.00016986,2]
[392404499,1761435056360,-500.0,0.00016986,2]
[392404500,1761435056369,-500.0,0.00016986,2]
[392404501,1761435056378,-500.0,0.00016986,2]
[392404502,1761435056388,-741.04,0.00016986,2]
[392404503,1761435056397,-507.08478594,0.00016986,2]
[392404504,1761435056405,-500.0,0.00016986,2]
[392404505,1761435056415,-500.0,0.00016986,2]
[392404506,1761435056424,-515.70088879,0.00016986,2]
[392404507,1761435056432,-500.0,0.00016986,2]
[392404508,1761435056443,-500.0,0.00016986,2]
[392404509,1761435056451,-1091.38,0.00016986,2]
[392404510,1761435056460,-500.0,0.00016986,2]
[392404511,1761435056469,-500.0,0.00016986,2]
[392404512,1761435056478,-500.0,0.00016986,2]
[392404513,1761435056487,-421.61835541,0.00016986,2]
[392404514,1761435056496,-500.0,0.00016986,2]
[392404515,1761435056505,-715.39,0.00016986,2]
[392404516,1761435056514,-500.0,0.00016986,2]
[392404517,1761435056523,-1224.0,0.00016986,2]
[392404518,1761435056531,-500.0,0.00016986,2]
[392404519,1761435056540,-500.0,0.00016986,2]
[392404520,1761435056549,-498.53927679,0.00016986,2]
[392404521,1761435056558,-500.0,0.00016986,2]
[392404522,1761435056567,-500.0,0.00016986,2]
[392404523,1761435056576,-1038.86,0.00016986,2]
[392404524,1761435056585,-500.0,0.00016986,2]
[392404525,1761435056594,-500.0,0.00016986,2]
[392404526,1761435056603,-500.0,0.00016986,2]
[392404527,1761435056612,-500.0,0.00016986,2]
[392404528,1761435056621,-500.0,0.00016986,2]
[392404529,1761435056630,-500.0,0.00016986,2]
[392404530,1761435056639,-500.0,0.00016986,2]
[392404531,1761435056648,-500.0,0.00016986,2]
[392404532,1761435056656,-500.0,0.00016986,2]
[392404533,1761435056665,-500.0,0.00016986,2]
[392404534,1761435056675,-500.0,0.00016986,2]
[392404535,1761435056684,-500.0,0.00016986,2]
[392404536,1761435056695,-500.0,0.00016986,2]
[392404537,1761435056705,-500.0,0.00016986,2]
[392404538,1761435056713,-500.0,0.00016986,2]
[392404539,1761435056723,-932.95,0.00016986,2]
[392404540,1761435056731,-500.0,0.00016986,2]
[392404541,1761435056742,-500.0,0.00016986,2]
[392404542,1761435056751,-500.0,0.00016986,2]
[392404543,1761435056760,-698.81,0.00016986,2]
[392404544,1761435056769,-500.0,0.00016986,2]
[392404545,1761435056778,-500.0,0.00016986,2]
[392404546,1761435056787,-500.0,0.00016986,2]
[392404547,1761435056796,-500.0,0.00016986,2]
[392404548,1761435056805,-500.0,0.00016986,2]
[392404549,1761435056814,-500.0,0.00016986,2]
[392404550,1761435056823,-918.84,0.00016986,2]
[392404551,1761435056831,-500.0,0.00016986,2]
[392404552,1761435056840,-500.0,0.00016986,2]
[392404553,1761435056849,-2152.23,0.00016986,2]
[392404554,1761435056858,-151.0,0.00016986,2]
[392404555,1761435056866,-613.25,0.00016986,2]
[392404556,1761435056875,-500.0,0.00016986,2]
[392404557,1761435056884,-500.0,0.00016986,2]
[392404558,1761435056893,-500.0,0.00016986,2]
[392404559,1761435056901,-500.0,0.00016986,2]
[392404560,1761435056911,-500.0,0.00016986,2]
[392404561,1761435056920,-510.099435,0.00016986,2]
[392404562,1761435056929,-824.59,0.00016986,2]
[392404563,1761435056938,-500.0,0.00016986,2]
[392404564,1761435056948,-500.0,0.00016986,2]
[392404565,1761435056958,-792.54,0.00016986,2]
[392404566,1761435056969,-500.0,0.00016986,2]
[392404567,1761435056979,-500.0,0.00016986,2]
[392404568,1761435056989,-500.0,0.00016986,2]
[392404569,1761435056998,-500.0,0.00016986,2]
[392404570,1761435057007,-500.0,0.00016986,2]
[392404571,1761435057016,-500.0,0.00016986,2]
[392404572,1761435057025,-500.0,0.00016986,2]
[392404573,1761435057034,-823.22,0.00016986,2]
[392404574,1761435057044,-580.54,0.00016986,2]
[392404575,1761435057053,-500.0,0.00016986,2]
[392404576,1761435057062,-500.0,0.00016986,2]
[392404577,1761435057072,-834.32,0.00016986,2]
[392404578,1761435057081,-500.0,0.00016986,2]
[392404579,1761435057090,-500.0,0.00016986,2]
[392404580,1761435057099,-500.0,0.00016986,2]
[392404581,1761435057108,-500.0,0.00016986,2]
[392404582,1761435057118,-1568.63,0.00016986,2]
[392404583,1761435057129,-500.0,0.00016986,2]
[392404584,1761435057140,-1326.48,0.00016986,2]
[392404585,1761435057149,-500.0,0.00016986,2]
[392404586,1761435057158,-688.96,0.00016986,2]
[392404587,1761435057168,-1000.0,0.00016986,2]
[392404588,1761435057178,-500.0,0.00016986,2]
[392404589,1761435057188,-500.0,0.00016986,2]
[392404590,1761435057197,-500.0,0.00016986,2]
[392404591,1761435057208,-536.51,0.00016986,2]
[392404592,1761435057217,-500.0,0.00016986,2]
[392404593,1761435057227,-500.0,0.00016986,2]
[392404594,1761435057236,-500.0,0.00016986,2]
[392404595,1761435057245,-1170.73,0.00016986,2]
[392404596,1761435057254,-500.0,0.00016986,2]
[392404597,1761435057263,-500.0,0.00016986,2]
[392404598,1761435057273,-500.0,0.00016986,2]
[392404599,1761435057283,-654.85,0.00016986,2]
[392404600,1761435057292,-500.0,0.00016986,2]
[392404601,1761435057301,-662.11,0.00016986,2]
[392404602,1761435057310,-500.0,0.00016986,2]
[392404603,1761435057319,-500.0,0.00016986,2]
[392404604,1761435057327,-839.52,0.00016986,2]
[392404605,1761435057336,-504.84924386,0.00016986,2]
[392404606,1761435057345,-500.0,0.00016986,2]
[392404607,1761435057354,-500.0,0.00016986,2]
[392404608,1761435057363,-727.86,0.00016986,2]
[392404609,1761435057373,-500.0,0.00016986,2]
[392404610,1761435057382,-500.0,0.00016986,2]
[392404611,1761435057391,-500.0,0.00016986,2]
[392404612,1761435057400,-500.0,0.00016986,2]
[392404613,1761435057409,-500.0,0.00016986,2]
[392404614,1761435057417,-500.0,0.00016986,2]
[392404615,1761435057426,-556.18,0.00016986,2]
[392404616,1761435057435,-500.0,0.00016986,2]
[392404617,1761435057444,-1184.83,0.00016986,2]
[392404618,1761435057453,-774.38,0.00016986,2]
[392404619,1761435057463,-500.0,0.00016986,2]
[392404620,1761435057472,-500.0,0.00016986,2]
[392404621,1761435057482,-854.93,0.00016986,2]
[392404622,1761435057491,-500.0,0.00016986,2]
[392404623,1761435057500,-1194.45,0.00016986,2]
[392404624,1761435057509,-594.04,0.00016986,2]
[392404625,1761435057518,-904.29,0.00016986,2]
[392404626,1761435057527,-513.96,0.00016986,2]
[392404627,1761435057537,-660.25,0.00016986,2]
[392404628,1761435057546,-500.0,0.00016986,2]
[392404629,1761435057555,-1284.34,0.00016986,2]
[392404630,1761435057565,-500.0,0.00016986,2]
[392404631,1761435057574,-1332.84,0.00016986,2]
[392404632,1761435057583,-1571.72,0.00016986,2]
[392404633,1761435057592,-500.0,0.00016986,2]
[392404634,1761435057601,-500.0,0.00016986,2]
[392404635,1761435057611,-913.35,0.00016986,2]
[392404636,1761435057620,-1296.29,0.00016986,2]
[392404637,1761435057630,-830.25,0.00016986,2]
[392404638,1761435057639,-500.0,0.00016986,2]
[392404639,1761435057648,-1207.39,0.00016986,2]
[392404640,1761435057657,-500.0,0.00016986,2]
[392404641,1761435057666,-2308.25,0.00016986,2]
[392404642,1761435057678,-500.0,0.00016986,2]
[392404643,1761435057689,-500.0,0.00016986,2]
[392404644,1761435057701,-500.0,0.00016986,2]
[392404645,1761435057711,-500.0,0.00016986,2]
[392404646,1761435057720,-913.36,0.00016986,2]
[392404647,1761435057730,-500.0,0.00016986,2]
[392404648,1761435057740,-500.0,0.00016986,2]
[392404649,1761435057750,-500.0,0.00016986,2]
[392404650,1761435057758,-500.0,0.00016986,2]
[392404651,1761435057767,-953.23,0.00016986,2]
[392404652,1761435057776,-500.0,0.00016986,2]
[392404653,1761435057785,-500.0,0.00016986,2]
[392404654,1761435057794,-1516.82,0.00016986,2]
[392404655,1761435057803,-861.5,0.00016986,2]
[392404656,1761435057811,-500.0,0.00016986,2]
[392404657,1761435057820,-1199.4,0.00016986,2]
[392404658,1761435057829,-500.0,0.00016986,2]
[392404659,1761435057838,-728.65,0.00016986,2]
[392404660,1761435057847,-1526.09,0.00016986,2]
[392404661,1761435057856,-500.0,0.00016986,2]
[392404662,1761435057865,-1856.0,0.00016986,2]
[392404663,1761435057874,-611.77,0.00016986,2]
[392404664,1761435057882,-560.25,0.00016986,2]
[392404665,1761435057891,-625.97,0.00016986,2]
[392404666,1761435057901,-891.34,0.00016986,2]
[392404667,1761435057910,-1248.77,0.00016986,2]
[392404668,1761435057918,-500.0,0.00016986,2]
[392404669,1761435057927,-500.0,0.00016986,2]
[392404670,1761435057936,-500.0,0.00016986,2]
[392404671,1761435057945,-1386.4,0.00016986,2]
[392404672,1761435057955,-512.00026272,0.00016986,2]
[392404673,1761435057964,-680.89,0.00016986,2]
[392404674,1761435057973,-840.02,0.00016986,2]
[392404675,1761435057983,-525.96,0.00016986,2]
[392404676,1761435057992,-500.0,0.00016986,2]
[392404677,1761435058001,-500.0,0.00016986,2]
[392404678,1761435058010,-800.98,0.00016986,2]
[392404679,1761435058018,-500.0,0.00016986,2]
[392404680,1761435058028,-608.45,0.00016986,2]
[392404681,1761435058037,-500.0,0.00016986,2]
[392404682,1761435058046,-533.37370974,0.00016986,2]
[392404683,1761435058055,-904.06,0.00016986,2]
[392404684,1761435058064,-1071.42,0.00016986,2]
[392404685,1761435058073,-500.0,0.00016986,2]
[392404686,1761435058082,-500.0,0.00016986,2]
[392404687,1761435058091,-500.0,0.00016986,2]
[392404688,1761435058100,-500.0,0.00016986,2]
[392404689,1761435058109,-500.0,0.00016986,2]
[392404690,1761435058120,-500.0,0.00016986,2]
[392404691,1761435058129,-760.47,0.00016986,2]
[392404692,1761435058139,-1725.52,0.00016986,2]
[392404693,1761435058150,-500.0,0.00016986,2]
[392404694,1761435058160,-1220.82,0.00016986,2]
[392404695,1761435058169,-1094.72,0.00016986,2]
[392404696,1761435058178,-500.0,0.00016986,2]
[392404697,1761435058188,-1233.12,0.00016986,2]
[392404698,1761435058197,-500.0,0.00016986,2]
[392404699,1761435058206,-1210.01,0.00016986,2]
[392404700,1761435058215,-500.0,0.00016986,2]
[392404701,1761435058225,-500.0,0.00016986,2]
[392404702,1761435058234,-1113.31,0.00016986,2]
[392404703,1761435058243,-500.0,0.00016986,2]
[392404704,1761435058252,-1924.8,0.00016986,2]
[392404705,1761435058261,-532.00524453,0.00016986,2]
[392404706,1761435058270,-500.0,0.00016986,2]
[392404707,1761435058279,-1000.0,0.00016986,2]
[392404708,1761435058288,-819.24,0.00016986,2]
[392404709,1761435058297,-634.19,0.00016986,2]
[392404710,1761435058306,-500.0,0.00016986,2]
[392404711,1761435058315,-500.0,0.00016986,2]
[392404712,1761435058324,-465.55695938,0.00016986,2]
[392404713,1761435058333,-500.0,0.00016986,2]
[392404714,1761435058342,-591.75,0.00016986,2]
[392404715,1761435058350,-1219.11,0.00016986,2]
[392404716,1761435058359,-1042.82,0.00016986,2]
[392404717,1761435058368,-500.0,0.00016986,2]
[392404718,1761435058377,-500.0,0.00016986,2]
[392404719,1761435058386,-500.0,0.00016986,2]
[392404720,1761435058395,-759.79,0.00016986,2]
[392404721,1761435058404,-854.22,0.00016986,2]
[392404722,1761435058413,-500.0,0.00016986,2]
[392404723,1761435058422,-1050.42,0.00016986,2]
[392404724,1761435058430,-671.98,0.00016986,2]
[392404725,1761435058439,-1525.4,0.00016986,2]
[392404726,1761435058449,-2672.4,0.00016986,2]
[392404727,1761435058458,-500.0,0.00016986,2]
[392404728,1761435058467,-500.0,0.00016986,2]
[392404729,1761435058476,-500.0,0.00016986,2]
[392404730,1761435058485,-1146.65,0.00016986,2]
[392404731,1761435058494,-1350.07,0.00016986,2]
[392404732,1761435058503,-500.0,0.00016986,2]
[392404733,1761435058513,-500.0,0.00016986,2]
[392404734,1761435058522,-982.45,0.00016986,2]
[392404735,1761435058531,-500.0,0.00016986,2]
[392404736,1761435058540,-570.09,0.00016986,2]
[392404737,1761435058549,-2056.2,0.00016986,2]
[392404738,1761435058558,-500.0,0.00016986,2]
[392404739,1761435058567,-912.68,0.00016986,2]
[392404740,1761435058577,-500.0,0.00016986,2]
[392404741,1761435058586,-500.0,0.00016986,2]
[392404742,1761435058595,-500.0,0.00016986,2]
[392404743,1761435058604,-500.0,0.00016986,2]
[392404744,1761435058614,-500.0,0.00016986,2]
[392404745,1761435058623,-588.25,0.00016986,2]
[392404746,1761435058632,-1133.7,0.00016986,2]
[392404747,1761435058641,-196.0,0.00017017,2]
[392404748,1761435058650,-2034.80968811,0.00017028,2]
[392404749,1761435058660,-242.84039565,0.00017031,2]
[392404750,1761435058669,-418.0,0.00017041,2]
[392404751,1761435058678,-1704.0,0.00017041,2]
[392404752,1761435058687,-1224.0,0.00017041,2]
[392404753,1761435058700,-196.0,0.00017069,2]
[392404754,1761435058710,-418.0,0.00017096,2]
[392404755,1761435058718,-1704.0,0.00017096,2]
[392404756,1761435058727,-1224.0,0.00017096,2]
[392404757,1761435058736,-500.0,0.00017109,2]
[392404758,1761435058746,-196.0,0.00017121,2]
[392404759,1761435058755,-724.9,0.00017142,2]
[392404760,1761435058764,-418.0,0.0001715,2]
[392404761,1761435058775,-1704.0,0.0001715,2]
[392404762,1761435058785,-1224.0,0.0001715,2]
[392404763,1761435058795,-196.0,0.00017172,2]
[392404764,1761435058804,-418.0,0.00017205,2]
[392404765,1761435058812,-1704.0,0.00017205,2]
[392404766,1761435058821,-1224.0,0.00017205,2]
[392404767,1761435058831,-196.0,0.00017224,2]
[392404768,1761435058840,-326.0,0.00017225,2]
[392404769,1761435058849,-418.0,0.0001726,2]
[392404770,1761435058858,-1704.0,0.0001726,2]
[392404771,1761435058867,-1224.0,0.0001726,2]
[392404772,1761435058876,-417.41498935,0.0001726,2]
[392404773,1761435058886,-500.0,0.0001726,2]
[392404774,1761435058895,-500.0,0.0001726,2]
[392404775,1761435058904,-500.0,0.0001726,2]
[392404776,1761435058913,-1151.92,0.0001726,2]
[392404777,1761435058922,-500.0,0.0001726,2]
[392404778,1761435058932,-500.0,0.0001726,2]
[392404779,1761435058941,-500.0,0.0001726,2]
[392404780,1761435058950,-500.0,0.0001726,2]
[392404781,1761435058970,-500.0,0.0001726,2]
[392404782,1761435058979,-500.0,0.0001726,2]
[392404783,1761435058989,-500.0,0.0001726,2]
[392404784,1761435058998,-500.0,0.0001726,2]
[392404785,1761435059007,-597.84744532,0.0001726,2]
[392404786,1761435059017,-219.19406052,0.0001726,2]
[392404787,1761435059027,-566.67,0.0001726,2]
[392404788,1761435059037,-500.0,0.0001726,2]
[392404789,1761435059047,-508.6908594,0.0001726,2]
[392404790,1761435059057,-500.0,0.0001726,2]
[392404791,1761435059067,-1191.25,0.0001726,2]
[392404792,1761435059076,-500.0,0.0001726,2]
[392404793,1761435059085,-500.0,0.0001726,2]
[392404794,1761435059095,-500.0,0.0001726,2]
[392404795,1761435059105,-500.0,0.0001726,2]
[392404796,1761435059114,-500.0,0.0001726,2]
[392404797,1761435059123,-500.0,0.0001726,2]
[392404798,1761435059133,-500.0,0.0001726,2]
[392404799,1761435059143,-500.0,0.0001726,2]
[392404800,1761435059153,-500.0,0.0001726,2]
[392404801,1761435059163,-593.30003927,0.0001726,2]
[392404802,1761435179408,-782.80093454,0.00014823,2]
[392404803,1761435182084,-298.80058858,0.00014823,2]
[392404804,1761435182618,300.0,0.00014822,2]
[392404805,1761435184185,-367.77198108,0.00014823,2]
[392404806,1761435185758,-158.283718,0.00014823,2]
[392404807,1761435188017,-215.53506521,0.00014823,2]
[392404808,1761435190589,168.65,0.00012329,2]
[392404809,1761435201027,843.28,0.00012329,2]
[392404810,1761435213562,153.279459,0.0001907,7]
[392404811,1761435242974,300.0,0.00014822,2]
[392404812,1761435245737,999.0,0.00014675,2]
[392404813,1761435251702,524.26026946,0.00014815,2]
[392404814,1761435272003,490.44854665,0.00014822,2]
[392404815,1761435272088,500.0,0.00014822,2]
[392404816,1761435272334,568.71462725,0.00014822,2]
[392404817,1761435272984,500.0,0.00014822,2]
[392404818,1761435273064,500.0,0.00014822,2]
[392404819,1761435273137,500.0,0.00014822,2]
[392404820,1761435273221,500.0,0.00014822,2]
[392404821,1761435273307,213.55964899,0.00014822,2]
[392404822,1761435273388,500.0,0.00014822,2]
[392404823,1761435273469,500.0,0.00014822,2]
[392404824,1761435273718,500.0,0.00014822,2]
[392404825,1761435273789,338.29838542,0.00014822,2]
[392404826,1761435273880,500.0,0.00014822,2]
[392404827,1761435273956,500.0,0.00014822,2]
[392404828,1761435274038,253.79852223,0.00014822,2]
[392404829,1761435274106,9.91476754,0.00014822,2]
[392404830,1761435274196,500.0,0.00014822,2]
[392404831,1761435274282,500.0,0.00014822,2]
[392404832,1761435274376,500.0,0.00014822,2]
[392404833,1761435274477,500.0,0.00014822,2]
[392404834,1761435274568,500.0,0.00014822,2]
[392404835,1761435274668,500.0,0.00014822,2]
[392404836,1761435274758,500.0,0.00014822,2]
[392404837,1761435275032,172.62603671,0.00014822,2]
[392404838,1761435275122,500.0,0.00014822,2]
[392404839,1761435275210,500.0,0.00014822,2]
[392404840,1761435275357,500.0,0.00014822,2]
[392404841,1761435275433,500.0,0.00014822,2]
[392404842,1761435275592,500.0,0.00014822,2]
[392404843,1761435275720,341.1039868,0.00014822,2]
[392404844,1761435280257,500.0,0.00014822,2]
[392404845,1761435280339,500.0,0.00014822,2]
[392404846,1761435280428,500.0,0.00014822,2]
[392404847,1761435280505,489.72082524,0.00014822,2]
[392404848,1761435302196,300.0,0.00014822,2]
[392404849,1761435302387,300.0,0.00014822,2]
[392404850,1761435302623,180.0,0.00014822,2]
[392404851,1761435302809,300.0,0.00014822,2]
[392404852,1761435303448,406.64438371,0.00014822,2]
[392404853,1761435303524,793.35561629,0.00014822,2]
[392404854,1761435362486,300.0,0.00014822,2]
[392404855,1761435402926,8906.65438371,0.00014095,2]
[392404856,1761435403008,10000.01,0.00014095,2]
[392404857,1761435403084,10000.01,0.00014095,2]
[392404858,1761435403160,10000.01,0.00014095,2]
[392404859,1761435403233,10000.01,0.00014095,2]
[392404860,1761435403305,9410.77327749,0.00014095,2]
[392404861,1761435426810,300.0,0.00014822,2]
[392404862,1761435444409,289.23672251,0.00014815,2]
[392404863,1761435444488,8169.32482821,0.00014815,2]
[392404864,1761435458235,1200.0,0.00014822,2]
[392404865,1761435479358,200.0,0.0002911,120]
[392404866,1761435480460,200.0,0.0002911,120]
[392404867,1761435481408,200.0,0.0002911,120]
[392404868,1761435482358,300.0,0.00014822,2]
[392404869,1761435528421,330.68517179,0.00014815,2]
[392404870,1761435528493,944.04590702,0.00014815,2]
[392404871,1761435542701,300.0,0.00014822,2]
[392404873,1761435551008,1289.977049,0.00013699,2]
[392404874,1761435602203,300.0,0.00014822,2]
[392404875,1761435602603,300.0,0.00014822,2]
[392404876,1761435603045,1200.0,0.00014822,2]
[392404877,1761435605032,300.0,0.00014822,2]
[392404878,1761435613213,151.0,0.00014823,2]
[392404879,1761435613820,151.0,0.00014823,2]
[392404880,1761435614319,213.96859442,0.00014823,2]
[392404881,1761435614444,151.0,0.00014823,2]
[392404882,1761435615043,151.0,0.00014823,2]
[392404883,1761435615374,1000.0,0.00014823,2]
[392404884,1761435615637,274.82668416,0.00014823,2]
[392404885,1761435615972,1000.0,0.00014823,2]
[392404886,1761435616600,1000.0,0.00014823,2]
[392404887,1761435617222,1000.0,0.00014823,2]
[392404888,1761435638885,-2866.08971865,0.00014823,2]
[392404889,1761435641555,-500.0,0.00014822,2]
[392404890,1761435641652,-500.0,0.00014822,2]
[392404891,1761435641767,-500.0,0.00014822,2]
[392404892,1761435641857,-500.0,0.00014822,2]
[392404893,1761435641955,-578.28242448,0.00014822,2]
[392404894,1761435642462,-4843.44515104,0.00014823,2]
[392404895,1761435642555,-10000.01,0.00014823,2]
[392404896,1761435642658,-10000.01,0.00014823,2]
[392404897,1761435642726,-10000.01,0.00014823,2]
[392404898,1761435642829,-10000.01,0.00014823,2]
[392404899,1761435662315,300.0,0.00014822,2]
[392404900,1761435722888,300.0,0.00014822,2]
[392404901,1761435737634,50758.7857002,0.0003,120]
[392404902,1761435758010,1200.0,0.00014822,2]
[392404903,1761435759731,166.923183,0.0001907,7]
[392404904,1761435764466,-340.30557041,0.00014823,2]
[392404905,1761435766153,-332.08304249,0.00014823,2]
[392404906,1761435768422,-202.61729083,0.00014823,2]
[392404907,1761435771207,-194.98700156,0.00014823,2]
[392404908,1761435779940,-223.5139117,0.00014823,2]
[392404909,1761435781968,-151.60387663,0.00014823,2]
[392404910,1761435782691,300.0,0.00014822,2]
[392404911,1761435794445,-194.14531406,0.00014823,2]
[392404912,1761435798275,211.0960333,0.00014141,2]
[392404913,1761435809511,-179.66451145,0.00014823,2]
[392404914,1761435809573,153.279459,0.0001907,7]
[392404915,1761435811172,-167.93959279,0.00014823,2]
[392404916,1761435816269,-315.91786368,0.00014823,2]
[392404917,1761435817807,-265.9360461,0.00014823,2]
[392404918,1761435821237,-198.25850035,0.00014823,2]
[392404919,1761435822694,-164.99838506,0.00014823,2]
[392404920,1761435822927,498.00286016,0.00014822,2]
[392404921,1761435825179,480.91624874,0.00014822,2]
[392404922,1761435825810,-231.13177892,0.00014823,2]
[392404923,1761435827335,-184.08213632,0.00014823,2]
[392404924,1761435830093,-168.50660155,0.00014823,2]
[392404925,1761435833741,-207.8971519,0.00014823,2]
[392404926,1761435835776,-158.72599161,0.00014823,2]
[392404927,1761435842623,300.0,0.00014822,2]
[392404928,1761435842972,415.21391524,0.00014822,2]
[392404929,1761435847097,-5994.78094256,0.00014823,2]
[392404930,1761435855419,-10000.01,0.00014823,2]
[392404931,1761435855815,-10000.01,0.00014823,2]
[392404932,1761435856166,-10000.01,0.00014823,2]
[392404933,1761435856693,-10000.01,0.00014823,2]
[392404934,1761435857124,-10000.01,0.00014823,2]
[392404935,1761435857507,-10000.01,0.00014823,2]
[392404936,1761435857804,-10000.01,0.00014823,2]
[392404937,1761435858042,-10000.01,0.00014823,2]
[392404938,1761435858283,-10000.01,0.00014823,2]
[392404939,1761435858585,-10000.01,0.00014823,2]
[392404940,1761435858918,-10000.01,0.00014823,2]
[392404941,1761435859175,-10000.01,0.00014823,2]
[392404942,1761435859452,-10000.01,0.00014823,2]
[392404943,1761435859703,-10000.01,0.00014823,2]
[392404944,1761435878556,-500.0,0.00014822,2]
[392404945,1761435878647,-241.64414156,0.00014822,2]
[392404946,1761435878722,-500.0,0.00014822,2]
[392404947,1761435878999,-399.5726063,0.00014822,2]
[392404948,1761435879080,-401.94932054,0.00014822,2]
[392404949,1761435879177,-526.52227939,0.00014822,2]
[392404950,1761435879828,-4860.63330442,0.00014823,2]